bitfinex-derivatives/quotes_ETHF0:USTF0_20260117
["timestamp","ask_amount","ask_price","bid_price","bid_amount"]
[1768612623204,0.91669712,3295.6,3294.1,0.98339485]
[1768612623409,0.91669712,3295.5,3294.4,0.98339485]
[1768612623703,0.91669712,3295.5,3294.0,0.98339485]
[1768612623704,0.00364652,3296.1,3294.7,0.98339485]
[1768612624008,0.00364652,3296.1,3295.3,0.98339485]
[1768612624210,0.00364652,3296.1,3295.0,0.98339485]
[1768612626403,0.00364652,3296.1,3295.3,0.98339485]
[1768612626607,0.00364652,3296.1,3295.6,0.98339485]
[1768612626808,0.14667187,3296.7,3295.3,0.98339485]
[1768612627106,0.91392815,3296.6,3295.3,0.98339485]
[1768612627308,0.14667187,3296.7,3295.3,0.98339485]
[1768612627502,0.91341933,3296.6,3295.3,0.98339485]
[1768612627706,0.00258509,3296.6,3295.3,0.98339485]
[1768612631299,0.00258509,3296.6,3295.9,0.98339485]
[1768612631504,0.14667187,3297.1,3295.9,0.98339485]
[1768612632411,0.1505437,3297.1,3295.9,0.98339485]
[1768612635207,1.13393855,3297.1,3295.6,0.98339485]
[1768612635411,0.1505437,3297.1,3295.3,0.14569105]
[1768612654327,1.05417892,3297.0,3295.3,0.14569105]
[1768612654527,0.14192414,3297.0,3295.3,0.14569105]
[1768612655429,0.9127144,3296.9,3295.3,0.14569105]
[1768612655622,0.14192414,3296.8,3295.3,0.14569105]
[1768612656428,0.14192414,3296.8,3295.1,0.1518]
[1768612657924,0.14192414,3296.6,3294.7,3.80589353]
[1768612658131,0.14192414,3296.4,3294.7,3.80589353]
[1768612658330,0.14192414,3296.4,3294.5,3.95772353]
[1768612658723,0.14192414,3296.4,3294.6,3.80589353]
[1768612662734,0.14192414,3296.4,3294.5,3.95772353]
[1768612663833,0.14192414,3296.4,3294.5,4.10228959]
[1768612664037,0.14192414,3296.4,3294.8,0.14456606]
[1768612666836,0.14192414,3296.4,3294.7,0.15182]
[1768612683463,0.14192414,3296.4,3294.7,3.95771353]
[1768612687464,0.14192414,3296.4,3294.8,3.80589353]
[1768612694271,0.14192414,3296.4,3294.8,3.95771353]
[1768612694567,0.14192414,3296.4,3294.8,0.15182]
[1768612695373,0.14192414,3296.4,3295.0,0.98292825]
[1768612700477,0.14192414,3296.4,3294.9,0.15181]
[1768612700674,0.14192414,3296.4,3295.1,0.98292825]
[1768612704976,0.14192414,3296.4,3294.9,0.15181]
[1768612705178,0.14192414,3296.4,3295.1,0.98293489]
[1768612720290,0.14192414,3296.4,3294.9,0.15181]
[1768612720492,0.14192414,3296.4,3295.2,0.98293489]
[1768612727996,0.14192414,3296.4,3294.9,0.15181]
[1768612728197,0.14192414,3296.4,3295.2,0.98293489]
[1768612735698,0.14192414,3296.4,3294.9,0.15181]
[1768612735699,0.98293489,3296.7,3295.4,0.98293489]
[1768612735905,0.91421417,3296.6,3295.4,0.98293489]
[1768612736103,0.91421417,3296.5,3295.4,0.98293489]
[1768612736306,0.98293489,3296.7,3295.4,0.98293489]
[1768612736503,0.91421379,3296.6,3295.4,0.98293489]
[1768612736712,0.91421379,3296.5,3295.4,0.98293489]
[1768612737016,0.14540293,3296.8,3295.8,0.98293489]
[1768612737214,0.91416393,3296.7,3295.8,0.98293489]
[1768612737515,0.14927476,3297.1,3295.8,0.98293489]
[1768612737709,0.9137739,3297.0,3295.8,0.98293489]
[1768612737905,0.9137739,3296.9,3295.8,0.98293489]
[1768612738105,0.9137739,3296.8,3295.8,0.98293489]
[1768612738304,0.14927476,3297.1,3295.8,0.98293489]
[1768612738616,0.91349312,3297.0,3295.8,0.98293489]
[1768612738816,0.91349312,3296.9,3295.8,0.98293489]
[1768612739112,0.14927476,3297.1,3295.8,0.98293489]
[1768612739313,0.91349206,3297.0,3295.8,0.98293489]
[1768612739514,0.91349206,3296.9,3295.8,0.98293489]
[1768612739704,0.14927476,3297.1,3295.8,0.98293489]
[1768612739903,0.91330609,3297.0,3295.8,0.98293489]
[1768612740099,0.91330609,3296.9,3295.8,0.98293489]
[1768612740314,0.14927476,3297.1,3295.8,0.98293489]
[1768612740517,0.91329303,3297.0,3295.8,0.98293489]
[1768612740716,0.91329303,3296.9,3295.8,0.98293489]
[1768612740917,0.14927476,3297.1,3295.8,0.98293489]
[1768612741217,0.91329303,3297.0,3295.8,0.98293489]
[1768612741422,0.14927476,3297.1,3295.1,3.80589353]
[1768612741423,0.00387183,3297.1,3296.2,0.98293489]
[1768612741717,0.00387183,3297.1,3296.2,0.98542695]
[1768612745315,0.00387183,3297.1,3296.2,0.00249206]
[1768612748818,1.12833782,3296.8,3296.2,0.00249206]
[1768612749026,0.14540293,3296.7,3295.6,0.15178]
[1768612749411,0.98293489,3297.0,3295.6,0.15178]
[1768612749922,0.98293489,3297.0,3295.6,0.15477256]
[1768612750313,0.90839932,3296.9,3295.6,0.15477256]
[1768612750513,0.98293489,3297.0,3295.6,0.15477256]
[1768612750720,0.90838396,3296.9,3295.6,0.15477256]
[1768612750917,0.98293489,3297.0,3295.6,0.15477256]
[1768612751117,0.90838424,3296.9,3295.6,0.15477256]
[1768612751419,0.14540293,3296.9,3295.6,0.15477256]
[1768612799163,0.14540293,3296.9,3295.6,0.00299256]
[1768612817279,0.14540293,3296.9,3295.7,0.98257811]
[1768612821579,0.14540293,3296.9,3295.9,0.98257811]
[1768612828888,0.14540293,3296.9,3296.0,0.98257811]
[1768612830385,0.00387183,3297.1,3296.2,0.98257811]
[1768612837293,0.00387183,3297.1,3296.1,0.98257811]
[1768612848302,0.00387183,3297.1,3295.6,0.14142779]
[1768612848490,0.00387183,3297.1,3296.2,0.98257811]
[1768612849397,0.00387183,3297.1,3296.4,0.98257811]
[1768612850702,0.00387183,3297.1,3296.2,0.98257811]
[1768612852804,0.00387183,3297.1,3296.4,0.98257811]
[1768612870720,0.00387183,3297.1,3296.6,0.98257811]
[1768612871016,0.006065,3297.4,3296.8,0.98257811]
[1768612871208,0.006065,3297.4,3296.6,0.98257811]
[1768612871408,0.006065,3297.4,3296.9,0.98257811]
[1768612872118,0.00927416,3297.4,3296.9,0.98257811]
[1768612873317,0.00927416,3297.4,3296.8,0.98257811]
[1768612874719,1.69,3298.0,3296.8,0.98257811]
[1768612875811,1.69364938,3298.0,3296.8,0.98257811]
[1768612876820,0.00364938,3298.0,3296.8,0.98257811]
[1768612877324,0.00364938,3298.0,3296.4,1.12537556]
[1768612887429,0.00364938,3298.0,3296.4,0.14342785]
[1768612887730,0.00364938,3298.0,3296.4,1.12537556]
[1768612888137,0.14740047,3298.0,3296.4,1.12537556]
[1768612893034,0.26040594,3297.9,3296.4,1.12537556]
[1768612893236,0.14740047,3298.0,3296.4,1.12537556]
[1768612893436,0.2604218,3297.9,3296.4,1.12537556]
[1768612893636,0.14740047,3298.0,3296.4,1.12537556]
[1768612893836,0.2604218,3297.9,3296.4,1.12537556]
[1768612894036,0.14740047,3298.0,3296.4,1.12537556]
[1768612894237,0.2604218,3297.9,3296.4,1.12537556]
[1768612894433,0.14740047,3298.0,3296.4,1.12537556]
[1768612894633,0.2604408,3297.9,3296.4,1.12537556]
[1768612894933,0.14740047,3298.0,3296.4,1.12537556]
[1768612895134,0.2604408,3297.9,3296.4,1.12537556]
[1768612895433,0.14740047,3298.0,3296.4,1.12537556]
[1768612895628,0.26046339,3297.9,3296.4,1.12537556]
[1768612895830,0.14740047,3298.0,3296.4,1.12537556]
[1768612896031,0.26046339,3297.9,3296.4,1.12537556]
[1768612896233,0.14740047,3298.0,3296.4,1.12537556]
[1768612896525,0.26049028,3297.9,3296.4,1.12537556]
[1768612896731,0.14740047,3298.0,3296.4,1.12537556]
[1768612896931,0.26049028,3297.9,3296.4,1.12537556]
[1768612897232,0.14740047,3298.0,3296.4,1.12537556]
[1768612897726,0.26052261,3297.9,3296.4,1.12537556]
[1768612897927,0.14740047,3298.0,3296.4,1.12537556]
[1768612898139,0.26052267,3297.9,3296.4,1.12537556]
[1768612898337,0.26052267,3297.8,3296.4,1.12537556]
[1768612898530,0.14740047,3298.0,3296.4,1.12537556]
[1768612898735,0.26056248,3297.9,3296.4,1.12537556]
[1768612898933,0.26056248,3297.8,3296.4,1.12537556]
[1768612899134,0.14740047,3298.0,3296.4,1.12537556]
[1768612899336,0.26061384,3297.9,3296.4,1.12537556]
[1768612899534,0.26061384,3297.8,3296.4,1.12537556]
[1768612899836,0.14740047,3298.0,3296.4,1.12537556]
[1768612900136,0.26061367,3297.9,3296.4,1.12537556]
[1768612900437,0.26061367,3297.8,3296.4,1.12537556]
[1768612900634,0.14740047,3298.0,3296.4,1.12537556]
[1768612900835,0.26068845,3297.9,3296.4,1.12537556]
[1768612901037,0.26068845,3297.8,3296.4,1.12537556]
[1768612901338,0.14740047,3298.0,3296.4,1.12537556]
[1768612901541,0.26077274,3297.9,3296.4,1.12537556]
[1768612901737,0.26077274,3297.8,3296.4,1.12537556]
[1768612901937,0.14740047,3298.0,3296.4,1.12537556]
[1768612902137,0.26077274,3297.9,3296.4,1.12537556]
[1768612902441,0.26077274,3297.8,3296.4,1.12537556]
[1768612902744,0.14740047,3298.0,3296.4,1.12537556]
[1768612902943,0.26078012,3297.9,3296.4,1.12537556]
[1768612903142,0.14740047,3298.0,3296.4,1.12537556]
[1768612906633,0.14740047,3298.0,3296.4,0.14342785]
[1768612916964,0.14740047,3298.0,3296.1,1.13370771]
[1768612920263,0.14740047,3298.0,3296.1,1.26566844]
[1768612924169,0.14740047,3298.0,3296.2,0.13196073]
[1768612924368,0.00364938,3298.0,3296.5,1.11390844]
[1768612924567,0.00364938,3298.0,3296.6,0.13196073]
[1768612928463,0.13703021,3298.0,3296.2,0.28371073]
[1768612937278,1.11908139,3298.0,3296.7,0.98205118]
[1768612939584,0.13703021,3298.0,3296.7,0.98205118]
[1768612943090,1.11908139,3298.0,3296.7,0.98205118]
[1768612949593,0.13703021,3298.0,3296.7,0.98205118]
[1768612949791,1.11908139,3298.0,3296.7,0.98205118]
[1768612953095,0.13703021,3298.0,3296.7,0.98205118]
[1768612953286,1.11908139,3298.0,3296.7,0.98205118]
[1768612967021,0.13703021,3298.0,3296.9,0.98205118]
[1768612980929,0.13703021,3298.0,3296.3,0.13356192]
[1768612981127,0.13703021,3298.0,3296.9,0.98205118]
[1768612995040,0.00364938,3298.0,3296.9,0.98205118]
[1768612997346,0.00364938,3298.0,3296.4,1.11975892]
[1768612999347,0.00364938,3298.0,3296.5,0.13785333]
[1768613006251,0.00364938,3298.0,3296.8,0.98190559]
[1768613015364,0.00364938,3298.0,3296.6,1.11315242]
[1768613027165,0.00364938,3298.0,3296.6,0.13124683]
[1768613051185,0.142349,3298.0,3296.2,4.11188757]
[1768613055389,0.142349,3298.0,3296.2,0.2930539]
[1768613059296,1.12440486,3298.0,3296.6,0.98205586]
[1768613061099,0.13869962,3297.9,3296.6,0.98205586]
[1768613062497,0.14024174,3297.7,3296.4,0.98205586]
[1768613068621,0.14024174,3297.7,3296.6,0.98205586]
[1768613068819,0.98570524,3298.0,3296.6,0.98205586]
[1768613069321,0.98570524,3298.0,3296.8,0.98205586]
[1768613070424,0.00364938,3298.0,3297.0,0.98205586]
[1768613071923,0.00364938,3298.0,3296.8,0.98205586]
[1768613077026,0.00364938,3298.0,3297.0,0.98205586]
[1768613078913,0.00364938,3298.0,3296.9,0.98205586]
[1768613080222,1.11949337,3297.8,3296.5,0.98205586]
[1768613080425,0.13743751,3297.7,3296.5,0.98205586]
[1768613087931,0.13743751,3297.7,3296.3,0.15175]
[1768613088132,0.13743751,3297.7,3296.5,0.98205586]
[1768613093735,1.11949337,3297.7,3296.5,0.98205586]
[1768613098539,1.11949337,3297.7,3296.3,0.15175]
[1768613098742,1.11949337,3297.7,3296.5,0.98205586]
[1768613100644,1.11949337,3297.7,3296.3,1.13380586]
[1768613100838,0.13743751,3297.7,3296.3,1.13380586]
[1768613101542,0.13743751,3297.7,3296.5,0.98205586]
[1768613102838,0.13743751,3297.7,3296.3,0.15175]
[1768613103039,0.13244907,3297.5,3295.8,3.81883367]
[1768613103240,0.98205586,3297.3,3295.8,3.81883367]
[1768613103544,0.13244907,3297.2,3295.9,0.98205586]
[1768613121259,0.13244907,3297.2,3295.7,0.15177]
[1768613122759,0.13244907,3297.2,3295.6,0.00299256]
[1768613122964,0.13508508,3296.7,3295.6,0.00299256]
[1768613126067,0.13508508,3296.7,2933.3,0.5]
[1768613126068,0.13508508,3295.3,3293.5,0.13936834]
[1768613126956,0.13771558,3295.3,3293.5,0.14235364]
[1768613135766,0.14495945,3294.9,3293.5,0.0029853]
[1768613135965,1.12746274,3294.6,3293.5,0.0029853]
[1768613136161,0.14495945,3294.5,3293.5,0.0029853]
[1768613170186,0.14495945,3294.5,3292.7,0.15191]
[1768613171183,0.14495945,3294.5,3292.7,0.15447347]
[1768613183312,0.14495945,3294.5,3293.1,0.98410517]
[1768613191716,0.14495945,3294.5,3293.2,0.98410517]
[1768613213231,0.26679294,3294.4,3293.2,0.98410517]
[1768613213431,0.14495945,3294.5,3293.2,0.98410517]
[1768613213632,0.26679294,3294.4,3293.2,0.98410517]
[1768613213833,0.14495945,3294.5,3293.2,0.98410517]
[1768613214023,0.26679294,3294.4,3293.2,0.98410517]
[1768613214231,0.14495945,3294.5,3293.2,0.98410517]
[1768613214421,0.26679328,3294.4,3293.2,0.98410517]
[1768613214623,0.14495945,3294.5,3293.2,0.98410517]
[1768613214824,0.26679328,3294.4,3293.2,0.98410517]
[1768613215024,0.14495945,3294.5,3293.2,0.98410517]
[1768613215232,0.26679328,3294.4,3293.2,0.98410517]
[1768613215533,0.14495945,3294.5,3293.2,0.98410517]
[1768613215830,0.26679246,3294.4,3293.2,0.98410517]
[1768613216036,0.14495945,3294.5,3293.2,0.98410517]
[1768613216232,0.26679255,3294.4,3293.2,0.98410517]
[1768613216435,0.14495945,3294.5,3293.2,0.98410517]
[1768613216633,0.26679259,3294.4,3293.2,0.98410517]
[1768613216833,0.14495945,3294.5,3293.2,0.98410517]
[1768613217032,0.26679238,3294.4,3293.2,0.98410517]
[1768613217232,0.14495945,3294.5,3293.2,0.98410517]
[1768613217530,0.26679245,3294.4,3293.2,0.98410517]
[1768613217730,0.14495945,3294.5,3293.2,0.98410517]
[1768613217929,0.26679244,3294.4,3293.2,0.98410517]
[1768613218130,0.14495945,3294.5,3293.2,0.98410517]
[1768613218332,0.26679217,3294.4,3293.2,0.98410517]
[1768613218529,0.14495945,3294.5,3293.2,0.98410517]
[1768613218727,0.26679224,3294.4,3293.2,0.98410517]
[1768613218930,0.14495945,3294.5,3293.2,0.98410517]
[1768613219128,0.26679217,3294.4,3293.2,0.98410517]
[1768613219336,0.14495945,3294.5,3293.2,0.98410517]
[1768613219534,0.26679217,3294.4,3293.2,0.98410517]
[1768613219735,0.14495945,3294.5,3293.2,0.98410517]
[1768613219928,0.26679239,3294.4,3293.2,0.98410517]
[1768613220131,0.14495945,3294.5,3293.2,0.98410517]
[1768613220435,0.26679234,3294.4,3293.2,0.98410517]
[1768613220634,0.14495945,3294.5,3293.2,0.98410517]
[1768613220837,0.26679234,3294.4,3293.2,0.98410517]
[1768613221042,0.14495945,3294.5,3293.2,0.98410517]
[1768613221230,0.2667921,3294.4,3293.2,0.98410517]
[1768613221431,0.14495945,3294.5,3293.2,0.98410517]
[1768613221631,0.26679202,3294.4,3293.2,0.98410517]
[1768613221931,0.14495945,3294.5,3293.2,0.98410517]
[1768613222226,0.26679202,3294.4,3293.2,0.98410517]
[1768613222422,0.14495945,3294.5,3293.2,0.98410517]
[1768613222638,0.26679192,3294.4,3292.7,0.29165746]
[1768613222831,0.14495945,3294.5,3293.1,0.98410517]
[1768613223033,0.26679192,3294.4,3293.1,0.98410517]
[1768613223233,0.14495945,3294.5,3293.1,0.98410517]
[1768613234347,0.98410517,3294.4,3293.1,0.98410517]
[1768613236650,1.12241728,3294.4,3293.1,0.98410517]
[1768613237142,1.12241728,3294.4,3292.7,0.29165746]
[1768613237444,0.98410517,3294.2,3292.8,0.98410517]
[1768613238347,0.98410517,3294.0,3292.7,0.00256347]
[1768613238649,1.12241728,3294.0,3292.7,0.00256347]
[1768613242550,0.1314836,3293.9,3292.7,0.00256347]
[1768613294601,0.13416884,3293.7,3292.7,0.00256347]
[1768613306699,0.13416884,3293.7,3292.2,4.80337816]
[1768613307013,0.13867841,3293.5,3292.2,4.80337816]
[1768613307212,0.13867841,3293.5,3292.2,0.98454449]
[1768613307712,0.13867841,3293.5,3292.2,0.98783054]
[1768613310915,0.13867841,3293.5,3292.2,0.00328605]
[1768613311105,0.13867841,3293.5,3292.4,0.98454449]
[1768613321027,0.13867841,3293.5,3292.2,0.00328605]
[1768613321221,0.13867841,3293.5,3292.4,0.98454449]
[1768613321522,0.13867841,3293.5,3292.2,0.00328605]
[1768613321727,0.13867841,3293.5,3292.4,0.98454449]
[1768613326834,0.13867841,3293.5,3292.2,0.00328605]
[1768613327028,0.13867841,3293.5,3292.4,0.98454449]
[1768613327733,0.13867841,3293.5,3292.2,0.00328605]
[1768613327928,0.13867841,3293.5,3292.4,0.98454449]
[1768613335636,0.14401064,3294.1,3292.8,0.98454449]
[1768613335850,0.91443384,3294.0,3292.8,0.98454449]
[1768613336148,0.91443384,3293.9,3292.8,0.98454449]
[1768613336327,1.12855513,3294.1,3292.8,0.98454449]
[1768613336328,0.91443384,3293.8,3292.8,0.98454449]
[1768613336530,0.91443384,3293.7,3292.8,0.98454449]
[1768613336726,0.14401064,3294.0,3292.8,0.98454449]
[1768613336941,0.91478455,3293.9,3292.8,0.98454449]
[1768613337141,0.91478455,3293.8,3292.8,0.98454449]
[1768613337440,0.91478455,3293.7,3292.8,0.98454449]
[1768613337636,0.14401064,3294.0,3292.8,0.98454449]
[1768613337944,0.9147621,3293.9,3292.8,0.98454449]
[1768613338137,0.9147621,3293.8,3292.8,0.98454449]
[1768613338443,0.9147621,3293.7,3292.8,0.98454449]
[1768613338742,0.14401064,3294.0,3292.8,0.98454449]
[1768613338936,0.91474575,3293.9,3292.8,0.98454449]
[1768613339238,0.14401064,3294.0,3292.8,0.98454449]
[1768613339239,0.91474575,3293.8,3292.8,0.98454449]
[1768613339433,0.91474575,3293.7,3292.8,0.98454449]
[1768613339636,0.14401064,3294.0,3292.8,0.98454449]
[1768613339942,0.91481888,3293.9,3292.8,0.98454449]
[1768613340238,0.91481888,3293.8,3292.8,0.98454449]
[1768613340426,0.91481888,3293.7,3292.8,0.98454449]
[1768613340633,0.14401064,3294.0,3292.8,0.98454449]
[1768613340937,0.91481945,3293.9,3292.8,0.98454449]
[1768613341138,0.91481945,3293.8,3292.8,0.98454449]
[1768613341340,0.91481945,3293.7,3292.8,0.98454449]
[1768613341639,0.14401064,3294.0,3292.8,0.98454449]
[1768613341836,0.91489127,3293.9,3292.8,0.98454449]
[1768613342034,0.91489127,3293.8,3292.8,0.98454449]
[1768613342236,0.91489127,3293.7,3292.8,0.98454449]
[1768613342436,0.14401064,3294.0,3292.8,0.98454449]
[1768613342637,0.91493144,3293.9,3292.8,0.98454449]
[1768613342838,0.91493144,3293.8,3292.8,0.98454449]
[1768613343137,0.91493144,3293.7,3292.8,0.98454449]
[1768613343338,0.14401064,3294.0,3292.8,0.98454449]
[1768613343533,0.91491277,3293.9,3292.8,0.98454449]
[1768613343740,0.91491277,3293.8,3292.8,0.98454449]
[1768613343942,0.91491277,3293.7,3292.8,0.98454449]
[1768613344237,0.14401064,3294.0,3292.8,0.98454449]
[1768613344440,0.91331683,3293.9,3292.8,0.98454449]
[1768613344740,0.91331683,3293.8,3292.8,0.98454449]
[1768613345041,0.14401064,3294.0,3292.8,0.98454449]
[1768613345237,0.91334059,3293.9,3292.8,0.98454449]
[1768613345439,0.91334059,3293.8,3292.8,0.98454449]
[1768613345639,0.14401064,3294.0,3292.3,0.28833649]
[1768613345938,0.91329007,3293.9,3292.9,0.98454449]
[1768613346134,0.91329007,3293.8,3292.9,0.98454449]
[1768613346333,0.14401064,3294.0,3292.9,0.98454449]
[1768613346535,0.91327884,3293.9,3292.9,0.98454449]
[1768613346744,0.14401064,3294.0,3292.9,0.98454449]
[1768613347046,0.91327881,3293.9,3292.9,0.98454449]
[1768613347345,0.14401064,3294.0,3292.9,0.98454449]
[1768613347537,0.91320426,3293.9,3292.9,0.98454449]
[1768613347735,0.14401064,3294.0,3292.9,0.98454449]
[1768613347930,0.91320429,3293.9,3292.9,0.98454449]
[1768613348134,0.14401064,3294.0,3292.9,0.98454449]
[1768613348336,0.91315436,3293.9,3292.9,0.98454449]
[1768613348536,0.14401064,3294.0,3292.9,0.98454449]
[1768613348744,0.91314977,3293.9,3292.9,0.98454449]
[1768613348949,0.14401064,3294.0,3292.4,0.15193]
[1768613349143,0.91315018,3293.9,3292.9,0.98454449]
[1768613349446,0.14401064,3294.0,3292.9,0.98454449]
[1768613349647,0.91308933,3293.9,3292.9,0.98454449]
[1768613349842,0.14401064,3294.0,3292.9,0.98454449]
[1768613350042,0.91305573,3293.9,3292.9,0.98454449]
[1768613350349,0.14401064,3294.0,3292.9,0.98454449]
[1768613350552,0.91300339,3293.9,3292.9,0.98454449]
[1768613350845,0.14401064,3294.0,3292.9,0.98454449]
[1768613351046,0.91300036,3293.9,3292.9,0.98454449]
[1768613351352,0.14401064,3294.0,3292.9,0.98454449]
[1768613351647,0.91296606,3293.9,3292.9,0.98454449]
[1768613351851,0.14401064,3294.0,3292.9,0.98454449]
[1768613352051,0.91296459,3293.9,3292.9,0.98454449]
[1768613352350,0.14401064,3294.0,3292.9,0.98454449]
[1768613352540,0.91293631,3293.9,3292.9,0.98454449]
[1768613352740,0.14401064,3294.0,3292.9,0.98454449]
[1768613353038,0.91293765,3293.9,3292.9,0.98454449]
[1768613353239,0.14401064,3294.0,3292.9,0.98454449]
[1768613353435,0.91291538,3293.9,3292.9,0.98454449]
[1768613353646,0.14401064,3294.0,3292.9,0.98454449]
[1768613353943,0.91291535,3293.9,3292.9,0.98454449]
[1768613354144,0.14401064,3294.0,3292.9,0.98454449]
[1768613354341,0.91294127,3293.9,3292.9,0.98454449]
[1768613354533,0.14401064,3294.0,3292.9,0.98454449]
[1768613354747,0.91293919,3293.9,3292.9,0.98454449]
[1768613354945,0.14401064,3294.0,3292.9,0.98454449]
[1768613355145,0.91293917,3293.9,3292.9,0.98454449]
[1768613355338,0.14401064,3294.0,3292.9,0.98454449]
[1768613355752,0.91292583,3293.9,3292.9,0.98454449]
[1768613355942,0.14401064,3294.0,3292.9,0.98454449]
[1768613356142,0.91292501,3293.9,3292.9,0.98454449]
[1768613356345,0.14401064,3294.0,3292.9,0.98454449]
[1768613356545,0.91291766,3293.9,3292.9,0.98454449]
[1768613356749,0.14401064,3294.0,3292.9,0.98454449]
[1768613356952,0.91291775,3293.9,3292.9,0.98454449]
[1768613357149,0.14401064,3294.0,3292.9,0.98454449]
[1768613357447,0.91291204,3293.9,3292.9,0.98454449]
[1768613357654,0.14401064,3294.0,3292.9,0.98454449]
[1768613357854,0.91291499,3293.9,3292.9,0.98454449]
[1768613358047,0.14401064,3294.0,3292.9,0.98454449]
[1768613358249,0.91291554,3293.9,3292.9,0.98454449]
[1768613358546,0.14401064,3294.0,3292.9,0.98454449]
[1768613358747,0.91291551,3293.9,3292.9,0.98454449]
[1768613358948,0.14401064,3294.0,3292.9,0.98454449]
[1768613359151,0.9129155,3293.9,3292.9,0.98454449]
[1768613359453,0.14401064,3294.0,3292.9,0.98454449]
[1768613359653,0.91291981,3293.9,3292.9,0.98454449]
[1768613359842,0.14401064,3294.0,3292.9,0.98454449]
[1768613360039,0.91293305,3293.9,3292.9,0.98454449]
[1768613360242,0.14401064,3294.0,3292.9,0.98454449]
[1768613360439,0.91295684,3293.9,3292.9,0.98454449]
[1768613360656,0.14401064,3294.0,3292.9,0.98454449]
[1768613360850,0.9129569,3293.9,3292.9,0.98454449]
[1768613361156,0.14401064,3294.0,3292.9,0.98454449]
[1768613361453,0.91295762,3293.9,3292.9,0.98454449]
[1768613361653,0.14401064,3294.0,3292.9,0.98454449]
[1768613361855,0.91297018,3293.9,3292.9,0.98454449]
[1768613362052,0.14401064,3294.0,3292.9,0.98454449]
[1768613362251,0.91297014,3293.9,3292.9,0.98454449]
[1768613362450,0.14401064,3294.0,3292.4,0.15193]
[1768613362647,0.91298584,3293.9,3292.4,0.15193]
[1768613362847,0.14401064,3294.0,3292.8,0.98454449]
[1768613363054,0.91298633,3293.9,3292.8,0.98454449]
[1768613363255,0.14401064,3294.0,3292.8,0.98454449]
[1768613363456,0.9130091,3293.9,3292.8,0.98454449]
[1768613363653,0.14401064,3294.0,3292.8,0.98454449]
[1768613363953,0.91299152,3293.9,3292.8,0.98454449]
[1768613364254,0.14401064,3294.0,3292.8,0.98454449]
[1768613364448,0.9130219,3293.9,3292.8,0.98454449]
[1768613364648,0.14401064,3294.0,3292.8,0.98454449]
[1768613364853,0.91302142,3293.9,3292.8,0.98454449]
[1768613365052,0.14401064,3294.0,3292.8,0.98454449]
[1768613365255,0.9130209,3293.9,3292.8,0.98454449]
[1768613365455,0.14401064,3294.0,3292.8,0.98454449]
[1768613365656,0.91305409,3293.9,3292.8,0.98454449]
[1768613365857,0.14401064,3294.0,3292.8,0.98454449]
[1768613366059,0.91305403,3293.9,3292.8,0.98454449]
[1768613366249,0.14401064,3294.0,3292.8,0.98454449]
[1768613366449,0.91306732,3293.9,3292.8,0.98454449]
[1768613366650,0.14401064,3294.0,3292.8,0.98454449]
[1768613366951,0.91307426,3293.9,3292.8,0.98454449]
[1768613367152,0.14401064,3294.0,3292.8,0.98454449]
[1768613367353,0.9130784,3293.9,3292.4,0.15193]
[1768613367659,0.14401064,3294.0,3292.4,0.15193]
[1768613367855,0.91309489,3293.9,3292.4,0.15193]
[1768613368055,0.14401064,3294.0,3292.4,0.15193]
[1768613368256,0.91309488,3293.9,3292.4,0.15193]
[1768613368456,0.14401064,3294.0,3292.4,0.15193]
[1768613368655,0.91312089,3293.9,3292.4,0.15193]
[1768613368860,0.14401064,3294.0,3292.4,0.15193]
[1768613369057,0.91312709,3293.9,3292.4,0.15193]
[1768613369256,0.14401064,3294.0,3292.4,0.15193]
[1768613369456,0.9131561,3293.9,3292.4,0.15193]
[1768613369659,0.14401064,3294.0,3292.4,0.15193]
[1768613369862,0.91315705,3293.9,3292.4,0.15193]
[1768613370053,0.14401064,3294.0,3292.4,0.15193]
[1768613370253,0.91315607,3293.9,3292.4,0.15193]
[1768613370453,0.14401064,3294.0,3292.4,0.15193]
[1768613370656,0.91315813,3293.9,3292.4,0.15193]
[1768613370957,0.14401064,3294.0,3292.4,0.15193]
[1768613371148,0.91319066,3293.9,3292.4,0.15193]
[1768613371354,0.14401064,3294.0,3292.4,0.15193]
[1768613371550,0.14401064,3294.0,3292.4,0.28627494]
[1768613382464,0.29237883,3295.0,3293.8,0.98429603]
[1768613382670,0.14056883,3295.0,3293.8,0.98429603]
[1768613388164,0.14056883,3295.2,3293.8,0.98429603]
[1768613400883,0.07982841,3295.2,3293.8,0.98429603]
[1768613421004,0.1309721,3295.7,3294.2,0.98429603]
[1768613421216,0.2827321,3296.1,3294.3,0.14087055]
[1768613427117,0.13442843,3295.8,3293.9,0.1305948]
[1768613427320,0.13705893,3295.3,3293.8,0.15186]
[1768613429323,0.13705893,3295.3,3294.1,0.98356906]
[1768613435922,0.0026305,3295.3,3294.1,0.98356906]
[1768613436118,0.0026305,3295.3,3294.5,0.98356906]
[1768613444830,0.0026305,3295.3,3294.1,0.14006489]
[1768613445129,0.0026305,3295.3,3294.5,0.98356906]
[1768613445431,0.0026305,3295.3,3294.3,0.98356906]
[1768613452128,0.0026305,3295.3,3294.5,0.98356906]
[1768613457934,0.0026305,3295.3,3294.1,0.14006489]
[1768613458236,0.0026305,3295.3,3294.6,0.98356906]
[1768613458440,0.0026305,3295.3,3294.6,0.98573642]
[1768613459337,1.12036187,3296.1,3294.6,0.98573642]
[1768613459644,0.25892554,3296.0,3294.6,0.98573642]
[1768613459846,0.25892554,3295.9,3294.6,0.98573642]
[1768613460035,1.12036187,3296.1,3294.6,0.98573642]
[1768613460236,0.25892275,3296.0,3294.6,0.98573642]
[1768613460434,0.25892275,3295.9,3294.6,0.98573642]
[1768613460728,1.12358431,3296.1,3294.6,0.98573642]
[1768613460928,0.25892716,3296.0,3294.6,0.00216736]
[1768613461133,0.25892716,3295.9,3294.6,0.98573642]
[1768613461334,0.13679281,3296.0,3294.6,0.98573642]
[1768613461538,1.24247628,3295.9,3294.6,0.98573642]
[1768613461739,0.98356906,3295.9,3294.6,0.98573642]
[1768613463436,0.25888445,3295.8,3294.6,0.98573642]
[1768613463638,0.98356906,3295.9,3294.6,0.98573642]
[1768613463937,0.25888445,3295.8,3294.6,0.98573642]
[1768613464138,0.98356906,3295.9,3294.6,0.98573642]
[1768613464344,0.25889227,3295.8,3294.6,0.98573642]
[1768613464545,0.98356906,3295.9,3294.6,0.98573642]
[1768613464844,0.25887963,3295.8,3294.6,0.98573642]
[1768613465043,0.98356906,3295.9,3294.6,0.98573642]
[1768613465245,0.25888938,3295.8,3294.6,0.98573642]
[1768613465446,0.98356906,3295.9,3294.6,0.98573642]
[1768613465639,0.25887892,3295.8,3294.6,0.98573642]
[1768613465937,0.98356906,3295.9,3294.6,0.98573642]
[1768613466137,0.25887892,3295.8,3294.6,0.98573642]
[1768613466337,0.98356906,3295.9,3294.6,0.98573642]
[1768613466538,0.25887192,3295.8,3294.6,0.98573642]
[1768613466738,0.98356906,3295.9,3294.6,0.98573642]
[1768613466945,0.25887192,3295.8,3294.6,0.98573642]
[1768613467247,0.98356906,3295.9,3294.6,0.98573642]
[1768613480555,1.12036187,3295.9,3294.6,0.98573642]
[1768613481760,1.12036187,3295.9,3294.6,0.00216736]